fUST/lending_fUST_20240425
["ID","MTS","AMOUNT","RATE_DAILY","PERIOD"]
[323418301,1713975043526,-549.95,0.00016438,2]
[323418305,1713975043535,-156.26236391,0.00016438,2]
[323418309,1713975043544,-549.95,0.00016438,2]
[323418313,1713975043554,-549.95,0.00016438,2]
[323418316,1713975043562,-549.95,0.00016438,2]
[323418320,1713975043571,-549.95,0.00016438,2]
[323418323,1713975043580,-549.95,0.00016438,2]
[323418326,1713975043589,-549.95,0.00016438,2]
[323418329,1713975043598,-549.95,0.00016438,2]
[323418332,1713975043607,-549.95,0.00016438,2]
[323418335,1713975043616,-549.95,0.00016438,2]
[323418338,1713975043625,-549.95,0.00016438,2]
[323418340,1713975043634,-549.95,0.00016438,2]
[323418343,1713975043643,-549.95,0.00016438,2]
[323418346,1713975043653,-503.51866596,0.00016438,2]
[323418349,1713975043662,-549.95,0.00016438,2]
[323418352,1713975043671,-549.95,0.00016438,2]
[323418355,1713975043681,-549.95,0.00016438,2]
[323418358,1713975043690,-549.95,0.00016438,2]
[323418361,1713975043699,-500.0,0.00016438,2]
[323418364,1713975043708,-549.95,0.00016438,2]
[323418366,1713975043717,-500.0,0.00016438,2]
[323418368,1713975043726,-550.17971077,0.00016438,2]
[323418370,1713975043736,-806.91,0.00016438,2]
[323418372,1713975043745,-200.09147316,0.00016438,2]
[323418374,1713975043755,-1310.72,0.00016438,2]
[323418376,1713975043764,-155.35508982,0.00016438,2]
[323418379,1713975043774,-500.0,0.00016438,2]
[323418381,1713975043783,-500.0,0.00016438,2]
[323418384,1713975043793,-500.9898219,0.00016438,2]
[323418387,1713975043802,-922.41,0.00016438,2]
[323418390,1713975043810,-1294.3,0.00016438,2]
[323418393,1713975043820,-204.36487611,0.00016438,2]
[323418396,1713975043829,-776.68,0.00016438,2]
[323418399,1713975043838,-639.1,0.00016438,2]
[323418402,1713975043848,-500.0,0.00016438,2]
[323418405,1713975043857,-500.0,0.00016438,2]
[323418408,1713975043867,-500.0,0.00016438,2]
[323418411,1713975043876,-7426.29,0.00016438,2]
[323418414,1713975043885,-500.0,0.00016438,2]
[323418417,1713975043895,-500.0,0.00016438,2]
[323418419,1713975043904,-449.43301271,0.00016438,2]
[323418423,1713975043914,-500.0,0.00016438,2]
[323418425,1713975043924,-500.0,0.00016438,2]
[323418428,1713975043933,-500.0,0.00016438,2]
[323418431,1713975043942,-500.0,0.00016438,2]
[323418434,1713975043952,-500.0,0.00016438,2]
[323418437,1713975043961,-500.3042794,0.00016438,2]
[323418439,1713975043970,-500.0,0.00016438,2]
[323418442,1713975043979,-500.0,0.00016438,2]
[323418445,1713975043988,-500.0,0.00016438,2]
[323418448,1713975043999,-496.38210146,0.00016438,2]
[323418451,1713975044008,-400.9379718,0.00016438,2]
[323418454,1713975044018,-272.61360926,0.000165,2]
[323418458,1713975044028,-167.280027,0.00016524,2]
[323418462,1713975044038,-1673.426036,0.00016524,2]
[323418465,1713975044050,-1859.308582,0.00016524,2]
[323418469,1713975044061,-1859.308583,0.00016524,2]
[323418472,1713975044071,-1673.426035,0.00016524,2]
[323418475,1713975044079,-371.861716,0.00016524,2]
[323418477,1713975044089,-769.775977,0.00016524,2]
[323418480,1713975044109,-167.280027,0.00016524,2]
[323418482,1713975044118,-557.792575,0.00016524,2]
[323418484,1713975044127,-167.342604,0.00016524,2]
[323418486,1713975044136,-160.351996,0.00016524,2]
[323418488,1713975044145,-565.0,0.00016683,2]
[323418490,1713975044155,-564.20205004,0.00016709,2]
[323418492,1713975044164,-549.48258406,0.0001671,2]
[323418494,1713975044173,-2587.27470458,0.0001671,2]
[323418496,1713975044182,-408.419886,0.0001671,2]
[323418498,1713975044191,-471.31782646,0.0001671,2]
[323418500,1713975044201,-155.63393416,0.0001671,2]
[323418502,1713975044210,-205.87422279,0.0001671,2]
[323418504,1713975044219,-329.44588054,0.0001671,2]
[323418506,1713975044229,-155.15687903,0.0001671,2]
[323418508,1713975044238,-283.30931028,0.0001671,2]
[323418510,1713975044250,-154.84515485,0.0001671,2]
[323418512,1713975044259,-381.71038916,0.0001671,2]
[323418514,1713975044268,-5817.88266251,0.0001671,2]
[323418516,1713975044278,-1875.9475601,0.00016711,2]
[323418518,1713975044287,-977.06231715,0.00016711,2]
[323418520,1713975044296,-808.31234139,0.00016711,2]
[323418522,1713975044306,-309.67484219,0.00016712,2]
[323418524,1713975044315,-358.03159687,0.00016712,2]
[323418526,1713975044324,-500.0,0.00016712,2]
[323418528,1713975044333,-500.0,0.00016712,2]
[323418530,1713975044343,-500.0,0.00016712,2]
[323418532,1713975044354,-305.64776956,0.00016712,2]
[323418534,1713975044363,-500.0,0.00016712,2]
[323418536,1713975044372,-1021.04,0.00016712,2]
[323418538,1713975044381,-500.0,0.00016712,2]
[323418540,1713975044391,-750.56,0.00016712,2]
[323418542,1713975044400,-500.0,0.00016712,2]
[323418544,1713975044409,-1006.57,0.00016712,2]
[323418546,1713975044419,-500.0,0.00016712,2]
[323418548,1713975044428,-683.25,0.00016712,2]
[323418550,1713975044446,-500.0,0.00016712,2]
[323418553,1713975044457,-500.0,0.00016712,2]
[323418555,1713975044475,-500.0,0.00016712,2]
[323418556,1713975044487,-500.0,0.00016712,2]
[323418558,1713975044502,-500.0,0.00016712,2]
[323418560,1713975044511,-500.0,0.00016712,2]
[323418562,1713975044521,-574.84,0.00016712,2]
[323418564,1713975044530,-1993.95,0.00016712,2]
[323418566,1713975044542,-500.0,0.00016712,2]
[323418569,1713975044552,-500.0,0.00016712,2]
[323418570,1713975044561,-500.0,0.00016712,2]
[323418572,1713975044571,-272.97830825,0.00016712,2]
[323418574,1713975044581,-500.0,0.00016712,2]
[323418577,1713975044590,-500.0,0.00016712,2]
[323418579,1713975044599,-237.75993891,0.00016712,2]
[323418580,1713975044609,-507.49465196,0.00016712,2]
[323418582,1713975044618,-500.0,0.00016712,2]
[323418585,1713975044628,-500.0,0.00016712,2]
[323418587,1713975044637,-500.0,0.00016712,2]
[323418589,1713975044646,-500.0,0.00016712,2]
[323418590,1713975044655,-912.71,0.00016712,2]
[323418592,1713975044665,-611.19,0.00016712,2]
[323418594,1713975044674,-500.0,0.00016712,2]
[323418596,1713975044683,-713.13,0.00016712,2]
[323418599,1713975044693,-562.35,0.00016712,2]
[323418600,1713975044702,-500.0,0.00016712,2]
[323418602,1713975044712,-500.0,0.00016712,2]
[323418605,1713975044722,-500.0,0.00016712,2]
[323418607,1713975044731,-602.56,0.00016712,2]
[323418609,1713975044742,-500.0,0.00016712,2]
[323418610,1713975044752,-500.0,0.00016712,2]
[323418612,1713975044761,-500.0,0.00016712,2]
[323418614,1713975044770,-563.3,0.00016712,2]
[323418616,1713975044779,-500.0,0.00016712,2]
[323418618,1713975044788,-500.0,0.00016712,2]
[323418620,1713975044798,-2945.86,0.00016712,2]
[323418622,1713975044806,-500.0,0.00016712,2]
[323418624,1713975044816,-500.0,0.00016712,2]
[323418626,1713975044825,-500.0,0.00016712,2]
[323418628,1713975044834,-500.0,0.00016712,2]
[323418630,1713975044843,-500.0,0.00016712,2]
[323418632,1713975044852,-500.0,0.00016712,2]
[323418634,1713975044861,-500.0,0.00016712,2]
[323418636,1713975044870,-500.0,0.00016712,2]
[323418638,1713975044879,-500.0,0.00016712,2]
[323418640,1713975044889,-500.0,0.00016712,2]
[323418642,1713975044898,-500.0,0.00016712,2]
[323418644,1713975044907,-500.0,0.00016712,2]
[323418646,1713975044915,-500.0,0.00016712,2]
[323418648,1713975044924,-500.0,0.00016712,2]
[323418650,1713975044934,-500.0,0.00016712,2]
[323418652,1713975044943,-500.0,0.00016712,2]
[323418654,1713975044953,-638.62777397,0.00016712,2]
[323418673,1713975045097,-306.64562367,0.00016712,2]
[323418675,1713975045104,-500.0,0.00016712,2]
[323418677,1713975045111,-500.0,0.00016712,2]
[323418679,1713975045118,-500.0,0.00016712,2]
[323418681,1713975045126,-500.0,0.00016712,2]
[323418683,1713975045132,-362.0002281,0.00016712,2]
[323418685,1713975045140,-527.68,0.00016712,2]
[323418687,1713975045148,-500.0,0.00016712,2]
[323418688,1713975045155,-391.74832948,0.00016712,2]
[323418690,1713975045163,-500.80733792,0.00016712,2]
[323418692,1713975045172,-500.0,0.00016712,2]
[323418694,1713975045181,-290.822897,0.00016712,2]
[323418696,1713975045190,-1586.37,0.00016712,2]
[323418698,1713975045200,-500.0,0.00016712,2]
[323418700,1713975045209,-500.0,0.00016712,2]
[323418703,1713975045218,-362.61373832,0.00016712,2]
[323418704,1713975045227,-2297.43,0.00016712,2]
[323418706,1713975045237,-500.0,0.00016712,2]
[323418709,1713975045249,-1159.11,0.00016712,2]
[323418710,1713975045258,-500.0,0.00016712,2]
[323418712,1713975045267,-500.0,0.00016712,2]
[323418714,1713975045276,-846.04,0.00016712,2]
[323418716,1713975045285,-500.0,0.00016712,2]
[323418718,1713975045293,-500.0,0.00016712,2]
[323418720,1713975045303,-500.0,0.00016712,2]
[323418722,1713975045312,-500.0,0.00016712,2]
[323418724,1713975045321,-841.44,0.00016712,2]
[323418726,1713975045330,-500.0,0.00016712,2]
[323418728,1713975045340,-500.0,0.00016712,2]
[323418731,1713975045349,-500.0,0.00016712,2]
[323418733,1713975045359,-1881.77,0.00016712,2]
[323418735,1713975045368,-500.0,0.00016712,2]
[323418737,1713975045378,-500.0,0.00016712,2]
[323418739,1713975045387,-500.0,0.00016712,2]
[323418741,1713975045396,-500.0,0.00016712,2]
[323418743,1713975045406,-829.11,0.00016712,2]
[323418745,1713975045415,-734.09,0.00016712,2]
[323418747,1713975045423,-730.95,0.00016712,2]
[323418749,1713975045434,-500.0,0.00016712,2]
[323418750,1713975045443,-500.0,0.00016712,2]
[323418752,1713975045452,-500.0,0.00016712,2]
[323418754,1713975045465,-846.86,0.00016712,2]
[323418756,1713975045475,-1671.77,0.00016712,2]
[323418758,1713975045484,-500.0,0.00016712,2]
[323418760,1713975045497,-500.0,0.00016712,2]
[323418762,1713975045506,-501.14257175,0.00016712,2]
[323418765,1713975045516,-500.0,0.00016712,2]
[323418767,1713975045525,-425.32897893,0.00016712,2]
[323418769,1713975045536,-500.0,0.00016712,2]
[323418771,1713975045545,-541.15010446,0.00016712,2]
[323418773,1713975045554,-500.0,0.00016712,2]
[323418775,1713975045564,-500.0,0.00016712,2]
[323418777,1713975045573,-500.0,0.00016712,2]
[323418779,1713975045582,-500.0,0.00016712,2]
[323418780,1713975045592,-500.0,0.00016712,2]
[323418781,1713975045601,-641.71,0.00016712,2]
[323418782,1713975045610,-500.0,0.00016712,2]
[323418783,1713975045620,-502.14820261,0.00016712,2]
[323418784,1713975045629,-500.0,0.00016712,2]
[323418785,1713975045638,-569.74084052,0.00016712,2]
[323418786,1713975045648,-690.46,0.00016712,2]
[323418787,1713975045657,-500.0,0.00016712,2]
[323418788,1713975045666,-500.0,0.00016712,2]
[323418789,1713975045676,-586.3,0.00016712,2]
[323418790,1713975045685,-500.0,0.00016712,2]
[323418791,1713975045694,-500.40325805,0.00016712,2]
[323418792,1713975045703,-500.0,0.00016712,2]
[323418793,1713975045712,-500.0,0.00016712,2]
[323418794,1713975045721,-943.62,0.00016712,2]
[323418795,1713975045730,-500.0,0.00016712,2]
[323418796,1713975045739,-1573.98,0.00016712,2]
[323418797,1713975045756,-500.0,0.00016712,2]
[323418798,1713975045765,-500.0,0.00016712,2]
[323418799,1713975045774,-789.5,0.00016712,2]
[323418800,1713975045783,-500.0,0.00016712,2]
[323418801,1713975045792,-2192.71,0.00016712,2]
[323418802,1713975045801,-151.0,0.00016712,2]
[323418803,1713975045810,-500.0,0.00016712,2]
[323418805,1713975045820,-500.0,0.00016712,2]
[323418807,1713975045829,-500.0,0.00016712,2]
[323418809,1713975045838,-500.0,0.00016712,2]
[323418811,1713975045848,-500.0,0.00016712,2]
[323418813,1713975045857,-529.0,0.00016712,2]
[323418815,1713975045867,-500.0,0.00016712,2]
[323418817,1713975045876,-500.0,0.00016712,2]
[323418819,1713975045886,-500.0,0.00016712,2]
[323418821,1713975045895,-500.0,0.00016712,2]
[323418823,1713975045904,-500.0,0.00016712,2]
[323418825,1713975045913,-822.61,0.00016712,2]
[323418827,1713975045922,-500.0,0.00016712,2]
[323418829,1713975045931,-500.0,0.00016712,2]
[323418831,1713975045940,-2097.13,0.00016712,2]
[323418833,1713975045949,-998.74,0.00016712,2]
[323418835,1713975045958,-598.26,0.00016712,2]
[323418837,1713975045967,-1562.91,0.00016712,2]
[323418839,1713975045977,-151.0,0.00016712,2]
[323418841,1713975045986,-252.902097,0.00016712,2]
[323418843,1713975046000,-501.31624573,0.00016712,2]
[323418845,1713975046009,-500.0,0.00016712,2]
[323418847,1713975046018,-251.981946,0.00016712,2]
[323418849,1713975046027,-251.981946,0.00016712,2]
[323418851,1713975046035,-500.0,0.00016712,2]
[323418853,1713975046044,-590.03,0.00016712,2]
[323418855,1713975046054,-251.981946,0.00016712,2]
[323418857,1713975046063,-251.981946,0.00016712,2]
[323418859,1713975046072,-514.25355199,0.00016712,2]
[323418861,1713975046082,-500.0,0.00016712,2]
[323418863,1713975046091,-500.0,0.00016712,2]
[323418865,1713975046100,-500.0,0.00016712,2]
[323418867,1713975046109,-500.0,0.00016712,2]
[323418869,1713975046119,-500.0,0.00016712,2]
[323418871,1713975046128,-500.0,0.00016712,2]
[323418873,1713975046137,-377.25496543,0.00016712,2]
[323418875,1713975046146,-500.0,0.00016712,2]
[323418877,1713975046156,-2419.79,0.00016712,2]
[323418879,1713975046165,-509.71347323,0.00016712,2]
[323418881,1713975046174,-500.0,0.00016712,2]
[323418883,1713975046183,-500.0,0.00016712,2]
[323418885,1713975046192,-500.0,0.00016712,2]
[323418887,1713975046201,-292.170461,0.00016712,2]
[323418888,1713975046210,-500.0,0.00016712,2]
[323418890,1713975046219,-292.170461,0.00016712,2]
[323418892,1713975046228,-500.0,0.00016712,2]
[323418894,1713975046238,-487.27586317,0.00016712,2]
[323418896,1713975046251,-292.170461,0.00016712,2]
[323418898,1713975046261,-292.170461,0.00016712,2]
[323418900,1713975046271,-500.0,0.00016712,2]
[323418902,1713975046280,-500.0,0.00016712,2]
[323418904,1713975046290,-500.0,0.00016712,2]
[323418906,1713975046300,-500.0,0.00016712,2]
[323418908,1713975046309,-500.0,0.00016712,2]
[323418910,1713975046318,-500.0,0.00016712,2]
[323418912,1713975046328,-1175.27,0.00016712,2]
[323418914,1713975046337,-9280.23,0.00016712,2]
[323418916,1713975046347,-1480.74,0.00016712,2]
[323418918,1713975046356,-629.51,0.00016712,2]
[323418920,1713975046365,-1960.03,0.00016712,2]
[323418922,1713975046374,-500.0,0.00016712,2]
[323418924,1713975046385,-501.30256273,0.00016712,2]
[323418926,1713975046394,-500.76994884,0.00016712,2]
[323418928,1713975046404,-500.51741182,0.00016712,2]
[323418930,1713975046413,-500.0,0.00016712,2]
[323418932,1713975046422,-1788.24,0.00016712,2]
[323418934,1713975046433,-1675.37,0.00016712,2]
[323418936,1713975046444,-1298.62,0.00016712,2]
[323418938,1713975046453,-500.0,0.00016712,2]
[323418940,1713975046462,-602.15,0.00016712,2]
[323418942,1713975046471,-1002.06,0.00016712,2]
[323418944,1713975046483,-500.0,0.00016712,2]
[323418946,1713975046495,-500.0,0.00016712,2]
[323418948,1713975046505,-21495.2,0.00016712,2]
[323418950,1713975046515,-971.73,0.00016712,2]
[323418952,1713975046524,-1533.51,0.00016712,2]
[323418954,1713975046533,-500.0,0.00016712,2]
[323418956,1713975046543,-500.84504057,0.00016712,2]
[323418958,1713975046551,-500.0,0.00016712,2]
[323418960,1713975046560,-960.27,0.00016712,2]
[323418962,1713975046569,-1047.76,0.00016712,2]
[323418964,1713975046578,-1293.81,0.00016712,2]
[323418966,1713975046587,-19586.79,0.00016712,2]
[323418968,1713975046596,-500.0,0.00016712,2]
[323418970,1713975046605,-545.29,0.00016712,2]
[323418972,1713975046614,-691.77,0.00016712,2]
[323418974,1713975046623,-500.0,0.00016712,2]
[323418976,1713975046632,-500.0,0.00016712,2]
[323418978,1713975046641,-500.0,0.00016712,2]
[323418980,1713975046650,-7241.22,0.00016712,2]
[323418982,1713975046659,-502.2687264,0.00016712,2]
[323418984,1713975046668,-500.0,0.00016712,2]
[323418986,1713975046677,-1307.55,0.00016712,2]
[323418988,1713975046686,-500.0,0.00016712,2]
[323418990,1713975046695,-1985.19,0.00016712,2]
[323418992,1713975046704,-500.0,0.00016712,2]
[323418994,1713975046713,-9852.86,0.00016712,2]
[323418996,1713975046722,-500.0,0.00016712,2]
[323418997,1713975046731,-982.22,0.00016712,2]
[323419000,1713975046742,-500.0,0.00016712,2]
[323419002,1713975046751,-500.0,0.00016712,2]
[323419003,1713975046760,-1008.71,0.00016712,2]
[323419005,1713975046770,-7791.77,0.00016712,2]
[323419007,1713975046779,-500.0,0.00016712,2]
[323419010,1713975046789,-166.937211,0.00016712,2]
[323419011,1713975046798,-166.937211,0.00016712,2]
[323419013,1713975046808,-500.0,0.00016712,2]
[323419015,1713975046817,-166.937211,0.00016712,2]
[323419018,1713975046826,-166.937211,0.00016712,2]
[323419019,1713975046835,-626.84,0.00016712,2]
[323419022,1713975046845,-500.74636177,0.00016712,2]
[323419023,1713975046854,-638.78,0.00016712,2]
[323419025,1713975046884,-500.0,0.00016712,2]
[323419028,1713975046899,-512.71532442,0.00016712,2]
[323419029,1713975046909,-500.0,0.00016712,2]
[323419031,1713975046919,-641.44,0.00016712,2]
[323419033,1713975046930,-500.0,0.00016712,2]
[323419035,1713975046939,-500.0,0.00016712,2]
[323419037,1713975046949,-500.0,0.00016712,2]
[323419039,1713975046959,-500.0,0.00016712,2]
[323419041,1713975046968,-219.226602,0.00016712,2]
[323419044,1713975046978,-219.226602,0.00016712,2]
[323419045,1713975046989,-2176.27,0.00016712,2]
[323419047,1713975047000,-1355.56,0.00016712,2]
[323419049,1713975047009,-602.12,0.00016712,2]
[323419051,1713975047019,-1362.57,0.00016712,2]
[323419054,1713975047028,-2426.9,0.00016712,2]
[323419055,1713975047037,-500.0,0.00016712,2]
[323419057,1713975047046,-484.08119159,0.00016712,2]
[323419060,1713975047056,-219.226602,0.00016712,2]
[323419061,1713975047066,-20958.66,0.00016712,2]
[323419064,1713975047076,-219.226602,0.00016712,2]
[323419065,1713975047086,-522.79,0.00016712,2]
[323419067,1713975047097,-500.0,0.00016712,2]
[323419069,1713975047108,-595.36,0.00016712,2]
[323419071,1713975047118,-1144.06,0.00016712,2]
[323419073,1713975047127,-883.66,0.00016712,2]
[323419075,1713975047137,-500.0,0.00016712,2]
[323419077,1713975047147,-1035.28,0.00016712,2]
[323419079,1713975047157,-500.0,0.00016712,2]
[323419081,1713975047167,-402.07564828,0.00016712,2]
[323419083,1713975047176,-749.1,0.00016712,2]
[323419085,1713975047187,-500.55821023,0.00016712,2]
[323419087,1713975047197,-500.0,0.00016712,2]
[323419089,1713975047207,-1841.01,0.00016712,2]
[323419091,1713975047217,-500.0,0.00016712,2]
[323419093,1713975047228,-500.0,0.00016712,2]
[323419095,1713975047239,-4954.95,0.00016712,2]
[323419097,1713975047250,-898.44,0.00016712,2]
[323419099,1713975047262,-6819.29,0.00016712,2]
[323419101,1713975047272,-2282.45,0.00016712,2]
[323419103,1713975047282,-1610.59,0.00016712,2]
[323419105,1713975047294,-500.0,0.00016712,2]
[323419107,1713975047305,-501.6743332,0.00016712,2]
[323419109,1713975047315,-3467.77,0.00016712,2]
[323419111,1713975047325,-500.0,0.00016712,2]
[323419114,1713975047335,-510.45822436,0.00016712,2]
[323419116,1713975047345,-500.0,0.00016712,2]
[323419118,1713975047356,-2682.8,0.00016712,2]
[323419120,1713975047366,-500.0,0.00016712,2]
[323419122,1713975047377,-500.55076593,0.00016712,2]
[323419123,1713975047386,-804.75,0.00016712,2]
[323419125,1713975047395,-500.0,0.00016712,2]
[323419127,1713975047405,-500.0,0.00016712,2]
[323419129,1713975047415,-634.36,0.00016712,2]
[323419131,1713975047425,-500.0,0.00016712,2]
[323419133,1713975047437,-6675.69,0.00016712,2]
[323419135,1713975047446,-500.0,0.00016712,2]
[323419137,1713975047457,-500.0,0.00016712,2]
[323419139,1713975047473,-3678.5,0.00016712,2]
[323419141,1713975047483,-500.0,0.00016712,2]
[323419143,1713975047495,-1093.45,0.00016712,2]
[323419145,1713975047507,-500.0,0.00016712,2]
[323419147,1713975047517,-500.0,0.00016712,2]
[323419149,1713975047528,-500.0,0.00016712,2]
[323419151,1713975047538,-500.98348651,0.00016712,2]
[323419153,1713975047548,-500.0,0.00016712,2]
[323419155,1713975047559,-562.55,0.00016712,2]
[323419157,1713975047569,-500.0,0.00016712,2]
[323419159,1713975047580,-637.46,0.00016712,2]
[323419161,1713975047590,-330.04666515,0.00016712,2]
[323419163,1713975047601,-501.2602715,0.00016712,2]
[323419165,1713975047610,-500.0,0.00016712,2]
[323419167,1713975047621,-151.0,0.00016712,2]
[323419169,1713975047631,-151.0,0.00016712,2]
[323419171,1713975047641,-500.0,0.00016712,2]
[323419173,1713975047651,-500.0,0.00016712,2]
[323419175,1713975047661,-151.0,0.00016712,2]
[323419177,1713975047671,-151.0,0.00016712,2]
[323419179,1713975047680,-806.91,0.00016712,2]
[323419181,1713975047690,-1310.72,0.00016712,2]
[323419183,1713975047700,-500.0,0.00016712,2]
[323419185,1713975047710,-922.41,0.00016712,2]
[323419186,1713975047720,-152.664016,0.00016712,2]
[323419188,1713975047731,-152.664016,0.00016712,2]
[323419190,1713975047741,-1294.3,0.00016712,2]
[323419192,1713975047757,-152.664016,0.00016712,2]
[323419194,1713975047768,-776.68,0.00016712,2]
[323419196,1713975047778,-152.664016,0.00016712,2]
[323419198,1713975047788,-639.1,0.00016712,2]
[323419200,1713975047798,-500.0,0.00016712,2]
[323419202,1713975047807,-205.32066597,0.00016712,2]
[323419204,1713975047817,-7426.29,0.00016712,2]
[323419206,1713975047827,-500.0,0.00016712,2]
[323419208,1713975047837,-500.0,0.00016712,2]
[323419210,1713975047847,-500.0,0.00016712,2]
[323419212,1713975047856,-500.0,0.00016712,2]
[323419213,1713975047866,-500.0,0.00016712,2]
[323419227,1713975047982,-500.0,0.00016712,2]
[323419229,1713975048013,-500.0,0.00016712,2]
[323419231,1713975048024,-501.27309174,0.00016712,2]
[323419233,1713975048035,-1673.426036,0.00016731,2]
[323419235,1713975048046,-1859.308582,0.00016731,2]
[323419237,1713975048056,-1859.308583,0.00016731,2]
[323419239,1713975048066,-1673.426035,0.00016731,2]
[323419240,1713975048076,-371.861716,0.00016731,2]
[323419243,1713975048087,-769.775977,0.00016731,2]
[323419245,1713975048098,-557.792575,0.00016731,2]
[323419247,1713975048109,-1673.426036,0.00016937,2]
[323419248,1713975048120,-1859.308582,0.00016937,2]
[323419251,1713975048132,-1859.308583,0.00016937,2]
[323419253,1713975048143,-1673.426035,0.00016937,2]
[323419255,1713975048154,-371.861716,0.00016937,2]
[323419257,1713975048164,-769.775977,0.00016937,2]
[323419259,1713975048174,-557.792575,0.00016937,2]
[323419261,1713975048183,-500.0,0.00016986,2]
[323419263,1713975048194,-500.0,0.00016986,2]
[323419264,1713975048204,-500.0,0.00016986,2]
[323419266,1713975048214,-500.0,0.00016986,2]
[323419269,1713975048224,-1021.04,0.00016986,2]
[323419271,1713975048235,-500.0,0.00016986,2]
[323419272,1713975048251,-750.56,0.00016986,2]
[323419274,1713975048264,-500.0,0.00016986,2]
[323419276,1713975048274,-1006.57,0.00016986,2]
[323419279,1713975048286,-500.0,0.00016986,2]
[323419280,1713975048296,-683.25,0.00016986,2]
[323419281,1713975048306,-500.0,0.00016986,2]
[323419282,1713975048316,-500.0,0.00016986,2]
[323419283,1713975048326,-500.98063444,0.00016986,2]
[323419284,1713975048337,-576.55008624,0.00016986,2]
[323419285,1713975048346,-500.0,0.00016986,2]
[323419286,1713975048356,-574.84,0.00016986,2]
[323419287,1713975048366,-1993.95,0.00016986,2]
[323419288,1713975048375,-504.59640057,0.00016986,2]
[323419289,1713975048385,-500.0,0.00016986,2]
[323419290,1713975048395,-500.0,0.00016986,2]
[323419291,1713975048405,-500.0,0.00016986,2]
[323419293,1713975048416,-500.0,0.00016986,2]
[323419295,1713975048426,-500.0,0.00016986,2]
[323419297,1713975048444,-500.0,0.00016986,2]
[323419299,1713975048455,-500.0,0.00016986,2]
[323419301,1713975048464,-500.0,0.00016986,2]
[323419303,1713975048474,-912.71,0.00016986,2]
[323419305,1713975048486,-611.19,0.00016986,2]
[323419307,1713975048502,-160.38501174,0.00016986,2]
[323419309,1713975048513,-713.13,0.00016986,2]
[323419311,1713975048522,-562.35,0.00016986,2]
[323419313,1713975048532,-500.0,0.00016986,2]
[323419315,1713975048542,-501.10083036,0.00016986,2]
[323419317,1713975048552,-500.0,0.00016986,2]
[323419319,1713975048561,-602.56,0.00016986,2]
[323419321,1713975048571,-500.0,0.00016986,2]
[323419323,1713975048580,-500.0,0.00016986,2]
[323419325,1713975048590,-563.3,0.00016986,2]
[323419326,1713975048601,-500.0,0.00016986,2]
[323419328,1713975048611,-495.34833895,0.00016986,2]
[323419330,1713975048620,-2945.86,0.00016986,2]
[323419333,1713975048632,-548.44901264,0.00016986,2]
[323419334,1713975048641,-500.0,0.00016986,2]
[323419336,1713975048652,-500.0,0.00016986,2]
[323419338,1713975048662,-500.0,0.00016986,2]
[323419340,1713975048671,-500.0,0.00016986,2]
[323419342,1713975048681,-500.0,0.00016986,2]
[323419344,1713975048691,-500.0,0.00016986,2]